Cogmind - Beta 11.1 @@@ ROGUE MODE // 2022.04.26 @ 16:56:42 Player: 3.14 Result: Self-destructed Performance ------------- Evolutions (1) 500 Regions Visited (2) 400 Robots Destroyed (16) 80 Value Destroyed (509) 509 Prototype IDs (2) 40 Alien Tech Used (0) 0 Bonus (0) 0 TOTAL SCORE: 1529 Bonus ------- None Cogmind --------- Core Integrity 338/400 Matter 300/300 Energy 65/400 System Corruption 0% Temperature Cool (37) Movement Treading (240) Ox1 Location -9/Materials Parts ------- > --- POWER (2) -------- Ion Engine Ion Engine > --- PROPULSION (2) --- Light Treads Light Treads > --- UTILITY (3) ------ Heat Sink Large Storage Unit Shield Generator > --- WEAPON (2) ------- Light EM Pulse Cannon Light EM Pulse Cannon > --- INVENTORY (15) --- Light Treads Light Treads Advanced Targeting Computer Advanced Targeting Computer Hardened Light Armor Plating Hardened Light Armor Plating Hardened Light Armor Plating Hardened Light Armor Plating Shield Generator Shield Generator Shield Generator Light EM Pulse Cannon Light EM Pulse Cannon Light Assault Rifle Grenade Launcher Peak State ------------ > --- POWER ------------ Ion Engine Ion Engine > --- PROPULSION ------- Light Treads Light Treads > --- UTILITY ---------- Large Storage Unit Hardened Light Armor Plating Shield Generator > --- WEAPON ----------- Light EM Pulse Cannon Light EM Pulse Cannon > --- INVENTORY -------- Light Treads Light Treads Heat Sink Hardened Light Armor Plating Hardened Light Armor Plating Hardened Light Armor Plating Shield Generator Shield Generator Shield Generator Light EM Pulse Cannon Light EM Pulse Cannon Light Assault Rifle Grenade Launcher [Rating: 15] Favorites ----------- Power Ion Engine Engine Ion Engine Propulsion Light Treads Treads Light Treads Leg Aluminum Leg Utility Large Storage Unit Device Shield Generator Storage Large Storage Unit Processor Transport Network Coupler Protection Hardened Light Armor Plating Weapon Light EM Pulse Cannon Energy Gun Particle Gun Energy Cannon Light EM Pulse Cannon Ballistic Gun Light Assault Rifle Build | -11 -10 -9 ------- Run | Scr Mat Mat Slots Evolved 2 | . . 2 Power 1 | . . 1 Propulsion . | . . . Utility 1 | . . 1 Weapon . | . . . Parts Attached 22 | . 16 6 Power 4 | . 2 2 Engine 4 | . 2 2 Core . | . . . Reactor . | . . . Propulsion 7 | . 6 1 Treads 3 | . 2 1 Leg 4 | . 4 . Wheel . | . . . Hover . | . . . Flight . | . . . Utility 6 | . 4 2 Device 3 | . 2 1 Storage 1 | . 1 . Processor 1 | . 1 . Hackware . | . . . Protection 1 | . . 1 Artifact . | . . . Weapon 5 | . 4 1 Energy Gun 1 | . 1 . Energy Cannon 2 | . 1 1 Ballistic Gun 2 | . 2 . Ballistic Cannon . | . . . Launcher . | . . . Special Weapon . | . . . Impact Weapon . | . . . Slashing Weapon . | . . . Piercing Weapon . | . . . Special Melee Weapon . | . . . Unidentified Prototypes . | . . . Parts Lost . | . . . Power . | . . . Propulsion . | . . . Utility . | . . . Weapon . | . . . Highest Loss Streak . | . . . To Critical Strikes . | . . . Average Slot Usage (%) 97 | . 95 100 Engine 16 | . 14 22 Treads 14 | . 11 22 Leg 11 | . 16 . Device 8 | . 5 13 Storage 13 | . 14 11 Processor 2 | . 4 . Protection 2 | . . 8 Energy Cannon 7 | . 1 22 Ballistic Gun 17 | . 25 . Naked Turns . | . . . Heaviest Build 45 | 12 32 45 Greatest Support 40 | 20 40 40 Greatest Overweight (x) 1 | . . 1 Average Overweight (x) . | . . 1 Largest Inventory Capacity 15 | . 15 15 Average Capacity 11 | . 9 15 Most Carried 15 | . 15 15 Average Carried 10 | . 9 14 Final Capacity 15 | 8 15 15 Final Carried 15 | 6 15 15 Class Distribution -------------------- 81% | Mutant 18% | Scavenger-Mutant Dominant Class ---------------- Mutant | -10/Materials Mutant | -9/Materials Resources | -11 -10 -9 ----------- Run | Scr Mat Mat Matter Collected 603 | 200 288 115 Remotely . | . . . Salvage Created 721 | . 424 297 Parts 39 | . 23 16 Haulers Intercepted 2 | . 2 . Recyclers Shooed 2 | . 1 1 Parts Field Recycled . | . . . Retrieved Matter . | . . . Parts Self-Destructed . | . . . Prevented . | . . . Kills | -11 -10 -9 ------- Run | Scr Mat Mat Combat Hostiles Destroyed 13 | . 7 6 Guns 7 | . 7 . Cannons 5 | . . 5 Classes Destroyed 5 | . 3 2 Hauler 2 | . 2 . Recycler 1 | . 1 . Grunt 10 | . 7 3 Brawler 1 | . . 1 Sentry 2 | . . 2 Best Kill Streak 3 | . 3 3 Combat Bots Only 3 | . 2 3 Max Kills in Single Turn 2 | . 1 2 Gunslinging . | . . . Exploded . | . . . Melee . | . . . Uniques/NPCs Destroyed . | . . . Combat | -11 -10 -9 -------- Run | Scr Mat Mat Damage Taken 695 | . 424 271 Core 196 | . 134 62 Absorbed by Shields 101 | . . 101 Core Remaining (%) 73 | 100 46 . Volleys Fired 63 | . 48 15 Largest 2 | . 2 2 Hottest 112 | . 40 112 Shots Fired 126 | . 96 30 Gun 96 | . 96 . Cannon 30 | . . 30 Launcher . | . . . Special . | . . . Kinetic 96 | . 96 . Thermal . | . . . Explosive . | . . . Electromagnetic 30 | . . 30 Robot Hit Streak 9 | . 9 9 Robot Miss Streak 4 | . 4 2 Penetration Max . | . . . Secondary Targets . | . . . Shots Hit Robots 87 | . 68 19 Core Hits 33 | . 25 8 Critical Kills . | . . . Critical Parts Destroyed . | . . . Critical Strikes 1 | . . 1 Corrupt 1 | . . 1 Melee Attacks . | . . . Impact . | . . . Slashing . | . . . Piercing . | . . . Sneak Attacks . | . . . Combat Hostiles . | . . . Follow-up Attacks . | . . . Damage Inflicted 1131 | . 721 410 Guns 713 | . 713 . Cannons 403 | . . 403 Explosions . | . . . Melee . | . . . Ramming 15 | . 8 7 Kinetic 713 | . 713 . Thermal . | . . . Explosive . | . . . Electromagnetic 403 | . . 403 Impact . | . . . Slashing . | . . . Piercing . | . . . Highest Corruption . | . . . Average Corruption . | . . . Corruption Purged . | . . . Corruption Blocked . | . . . Overload Shots . | . . . Overflow Damage . | . . . Projectiles . | . . . Explosions . | . . . Melee . | . . . Knockbacks . | . . . Impact . | . . . Kinetic . | . . . Secondary . | . . . Self-Inflicted Damage . | . . . Shots . | . . . Rammed 2 | . 1 1 Targets Rammed 5 | . 4 1 Kicked 3 | . 3 . Crushed . | . . . Highest Temperature 250 | . 18 250 Average Temperature 94 | . 8 123 Received Heat Transfer 310 | . 234 76 Siege Activations . | . . . Robots Corrupted 1 | . . 1 Combat Hostiles 1 | . . 1 Parts Fried 2 | . . 2 Impact Corruptions . | . . . Robots Melted . | . . . Combat Hostiles . | . . . Parts Melted . | . . . Heat Transferred . | . . . Parts Sabotaged . | . . . Parts Stolen . | . . . Parts Stripped . | . . . Power Chain Reactions . | . . . Missiles Intercepted . | . . . Alert | -11 -10 -9 ------- Run | Scr Mat Mat Peak Influence 240 | . 240 190 Initial . | . . . Average 62 | . 79 27 Maximum Alert Level 1 | . 1 . Low Security (%) 95 | . 93 100 Level 1 4 | . 6 . Level 2 . | . . . Level 3 . | . . . Level 4 . | . . . Level 5 . | . . . High Security . | . . . Max Security . | . . . Squads Dispatched 3 | . 2 1 Investigation 1 | . 1 . Extermination . | . . . Reinforcement 2 | . 1 1 Assault . | . . . Garrison . | . . . Intercept . | . . . Searches Triggered . | . . . Construction Impeded . | . . . Haulers Reinforced . | . . . Active Scanning Responses . | . . . Cargo Convoy Interrupts . | . . . Stealth | -11 -10 -9 --------- Run | Scr Mat Mat Distress Signals 2 | . 1 1 Communications Jammed . | . . . Distress Signals . | . . . Times Spotted 26 | . 14 12 Peak Tracking Total 5 | . 4 5 Tactical Retreats . | . . . Traps | -11 -10 -9 ------- Run | Scr Mat Mat Traps Triggered 2 | . 1 1 Indirectly . | . . . Trap Hack Attempts . | . . . Triggered . | . . . Disarmed . | . . . Reprogrammed . | . . . Reused . | . . . Traps Extracted . | . . . Installed . | . . . Triggered . | . . . Machines | -11 -10 -9 ---------- Run | Scr Mat Mat Machines Disabled 2 | . . 2 Max in Single Turn 1 | . . 1 Machines Sabotaged . | . . . Garrisons Compromised . | . . . Overloaded Fab Kills . | . . . Hacking | -11 -10 -9 --------- Run | Scr Mat Mat Machines Accessed 1 | . 1 . Terminals 1 | . 1 . Fabricators . | . . . Repair Stations . | . . . Recycling Units . | . . . Scanalyzers . | . . . Garrison Access . | . . . Total Hacks 5 | . 5 . Successful 3 | . 3 . Failed 2 | . 2 . Catastrophic . | . . . Database Lockouts . | . . . Manual 4 | . 4 . Terminals 5 | . 5 . Fabricators . | . . . Repair Stations . | . . . Recycling Units . | . . . Scanalyzers . | . . . Garrison Access . | . . . Terminal Hacks 2 | . 2 . Robot Analysis 1 | . 1 . Prototype ID Bank 1 | . 1 . Fabricator Hacks . | . . . Repair Station Hacks . | . . . Recycling Unit Hacks . | . . . Scanalyzer . | . . . Garrison Access Hacks . | . . . Unauthorized Hacks 1 | . 1 . Terminals 1 | . 1 . Botnet 1 | . 1 . Fabricators . | . . . Repair Stations . | . . . Recycling Units . | . . . Scanalyzers . | . . . Garrison Access . | . . . Data Cores Recovered . | . . . Used . | . . . Hacking Detections 1 | . 1 . Full Trace Events . | . . . Feedback Events . | . . . Feedback Blocked . | . . . Robot Schematics Acquired . | . . . Robots Built . | . . . Authchips . | . . . Time . | . . . Total Robot Build Rating . | . . . Part Schematics Acquired . | . . . Parts Built . | . . . Authchips . | . . . Time . | . . . Total Part Build Rating . | . . . Parts Repaired . | . . . Time . | . . . Parts Recycled . | . . . Recycled Matter . | . . . Retrieved Matter . | . . . Retrieved Components . | . . . Parts Scanalyzed . | . . . Part Schematics Acquired . | . . . Parts Damaged . | . . . Bothacking | -11 -10 -9 ------------ Run | Scr Mat Mat Used RIF Installer . | . . . Robots Hacked . | . . . Non-combat . | . . . Combat . | . . . Robot Hacks Applied . | . . . Relay Couplers Released . | . . . Fabnet Peak Effective % . | . . . Robots Rewired . | . . . Allies Hacked . | . . . Hacks Repelled . | . . . Allies | -11 -10 -9 -------- Run | Scr Mat Mat Total Allies . | . . . Largest Group . | . . . Highest-Rated Group . | . . . Highest-Rated Ally . | . . . Total Orders . | . . . Ally Attacks . | . . . Total Damage . | . . . Kills . | . . . Allies Corrupted . | . . . Allies Melted . | . . . Intel | -11 -10 -9 ------- Run | Scr Mat Mat Robot Analysis Total 1 | . 1 . Derelict Logs Recovered . | . . . Drone Launches . | . . . Drone Recoveries . | . . . Exploration | -11 -10 -9 ------------- Run | Scr Mat Mat Turns Passed 1203 | . 811 392 Spaces Moved 547 | 1 427 119 Core . | . . . Treads 307 | . 188 119 Legs 240 | 1 239 . Wheels . | . . . Hover . | . . . Flight . | . . . Fastest Speed 120 | 120 120 240 Average Speed 159 | 120 137 240 Slowest Speed 240 | 120 160 240 Overloaded Moves . | . . . Propulsion Burnouts . | . . . Robots Hopped . | . . . Cave-ins Triggered . | . . . Exploration Rate (%) 23 | 2 51 17 Regions Visited 2 Branch Regions . Pre-discovered Areas . | . . . Known Exits Taken . | . . . Unknown Exits Taken 2 | 1 1 . Scrap Searched . | . . . Spaces Dug . | . . . Terrain Destroyed . | . . . Melee . | . . . Projectile . | . . . AOE . | . . . Terrain Rammed . | . . . Walls Destroyed . | . . . Machines Disabled . | . . . Actions | -11 -10 -9 --------- Run | Scr Mat Mat Total 763 | . 570 193 Wait 89 | . 40 49 Move 545 | . 426 119 Hop . | . . . Pick Up 19 | . 17 2 Fast Attach 5 | . 4 1 Attach 5 | . 3 2 Detach 1 | . 1 . Swap 12 | . 9 3 Drop 19 | . 18 1 Fire 63 | . 48 15 Melee . | . . . Ram . | . . . Kick 3 | . 3 . Crush 2 | . 1 1 Escape Stasis . | . . . Rewire . | . . . Trap . | . . . Miscellaneous . | . . . Route ------- -11/Scrapyard -10/Materials -9/Materials History --------- Turn | Location | Event 1 | -11/Scrapyard | Discovered new exit (range 0) 1 | -11/Scrapyard | Entered Materials 349 | -10/Materials | Core integrity fell below 50% 424 | -10/Materials | Discovered new exit (range 8) 665 | -10/Materials | Build established: Mutant 812 | -10/Materials | Entered another Materials area 812 | -9/Materials | Evolved 2 slots: Power x1, Utility x1 1204 | -9/Materials | Self-destructed Last Messages --------------- 01131_ W-16 Scout sends out distress signal. 01134_ G-34 Mercenary destroyed. 01134_ Door malfunctions. 01138_ ALERT: Hostiles spotted, dispatching reinforcements to Terminal M003. 01142_ Acquired 40 matter. 01149_ Dropped Ion Engine. 01156_ K-01 Serf collects debris. 01163_ Heat Sink fried. 01163_ Y-45 Defender destroyed. 01163_ G-34 Mercenary destroyed. 01164_ K-01 Serf collects debris. 01166_ G-34 Mercenary destroyed. 01168_ K-01 Serf collects debris. 01172_ Acquired 15 matter. 01175_ K-01 Serf collects debris. 01196_ Heat Sink fried. 01196_ Y-45 Defender destroyed. 01196_ Door malfunctions. 01196_ K-01 Serf collects debris. Map ----- +----------------------------------------------------+ | ?????#### ## #??????????? | | ?????# | #??????????? | | ?????# ## ###### #??????????? | | ?????# ## #????? #??????????? | | ?????# ########?????? #??????????? | | ?????# #?????????????## #??????????? | | ?????# #??????????????? ?????????? | | ?????# #???????????????? ????????? | | ###??# #?????????????????# ????????? | | # ?# #??????????????????? ?????????? | | #" ?# #??????#+#????????????????????? | | #" # #??????# #????????????????????? | | #" # ######## #????????????????????? | | #T / ! [= #????????????????????? | | #" # *###### #????????????????????? | | #" # ######+####?????????????????? | | #" ?+ + T #?????????????????? | | # ?##### #?????????????????? | | ###??????#%= #?????????????????? | | ?????????#!=* #?????????????????? | | ?????????#%" "" #?????????????????? | | ?????????#=""" """ #?????????????????? | | ?????????#%"""g""" #?????????????????? | | ?????????#[=k*g #?????????????????? | | ?????????####g#########??????????????? | | ???????????#!@[ a ???????? | | ???????? /w ???????? | | ????" ### ???????? | | ??S"" ????# ##############????????? | | ???"???????# #?????????????????????? | | ???????????# #?????????????????????? | | ???????????# #?????????????????????? | | ??????????? #?????????????????????? | | ??????????? #?????????????????????? | | ?????????? #?????????????????????? | | ??????????######?????????????????????? | | ?????????????????????????????????????? | | ?????????????????????????????????????? | | ?????????????????????????????????????? | | ?????????????????????????????????????? | | ?????????????????????????????????????? | | ?????????????????????????????????????? | | ?????????????????????????????????????? | | ?????????????????????????????????????? | | ?????????????????????????????????????? | | ?????????????????????????????????????? | | ?????????????????????????????????????? | | ?????????????????????????????????????? | | ?????????????????????????????????????? | | ?????????????????????????????????????? | +----------------------------------------------------+ Best States ------------- Heat Dissipation 38 Energy Generation 15 Energy Capacity 400 Matter Stores 300 Matter Capacity 300 Sight Range 16 Terrain Scan Density 10 Armor Coverage 150 Evasion (%) 55 Recoil Reduction 2 Item Schematics ----------------- None Robot Schematics ------------------ None Fabricated ------------ Nothing Alien Tech Used ----------------- None Achievements -------------- None Challenges ------------ None Game ------ Seed SegregatorPhaseEdition Manual? 0 Play Time 00:07:12 Cumulative 735.3 hours Start 2022.04.26 @ 16:50:26 End 2022.04.26 @ 16:56:42 Sessions 1 Manual Loads 0 Difficulty Rogue Special Mode None Game No. 1126 Rogue 1126 Adventurer 0 Explorer 0 Win Type - Total 70 Types 41/1/11/12/4/0/0/1/0 Lore% 91 Gallery% 90 Achievement% 83 Wizard Run 0 Options --------- ASCII 1 Keyboard 0 Movement Numpad Keybinds 0 Fullscreen 0 Font 14/SmallcapsGlow Map View 76x50 Tactical HUD 1 Map Filters NONE Filters NONE Steam 1 RUN: cc21aec0-1c81-42f6-8eb2-cc7e4efcedf2